Workbook

Sheet . figueroa st. proposals.xls)Se
P2: Roy Belson
Q3: 818-707-7514
Q4: 818-707-7578 Fax
C6: Multi-Residential - Investment Summary
C7: PRICING SUMMARY | L7: PROPERTY DESCRIPTION
L9: Property: | N9: 1200 paeo camarillo | S9: No. Units: | V9: 20
C10: Listed Price: | I10: 5000000 | L10: Address: | N10: camarillo, ca | S10: Gross SF: | V10: 20914
C11: Down Payment: | H11: 0.5 | J11: 2000000 | S11: Lot Size: | V11: 84071
C12: Price per Unit: | J12: =I10/V9 -> 250000 | S12: Year Built: | V12: 1980
C13: Price per SF | J13: =I10/V10 -> 239.0743043 | N13: FINANCING TERMS
C14: Current GRM: | J14: =I10/(J23+J25) -> 12.97508265 | L14: Loan Amount: | R14: 2000000
C15: Current CAP: | J15: =J28/I10*100 -> 5.39508 | L15: Terms (Years): | R15: 30 | V15: 30
C16: Market GRM: | J16: =I10/(R23+R25) -> 9.961429346 | L16: Interest Rate: | R16: 0.0525 | V16: 0.06
C17: Market CAP: | J17: =R28/I10*100 -> 6.536784 | L17: Monthly Payment: | R17: =PMT(R16/12,30*12,-R14) -> 11044.07404 | V17: =PMT(V16/12,30*12,-V14,0) -> 0
L18: Yearly Payment: | R18: =R17*12 -> 132528.8885 | V18: =V17*12 -> 0
R19: 1.2 | V19: 1.2
C21: ANNUALIZED OPERATING DATA
I22: Current | Q22: Market
C23: Scheduled Gross Income: | J23: 385354 | R23: 501936
C24: Less Vacancy Rate Reserve: | L24: 0.05 | R24: =R23*T24 -> 25096.8 | T24: 0.05
C25: Laundry Income:
C26: Gross Operating Income: | J26: 385354 | R26: =(R23+R25)-R24 -> 476839.2
C27: Less Expenses: | J27: 115600 | L27: 0.3 | M27: * | R27: 150000 | T27: =R27/R23 -> 0.2988428804 | U27: *
C28: Net Operating Income: | J28: =J26-J27 -> 269754 | R28: =R26-R27 -> 326839.2
C29: Less Loan Payments: | J29: =R18 -> 132528.8885 | L29: =SUM(J28/J29) -> 2.035435466 | R29: =J29 -> 132528.8885
C30: Pre-Tax Cash Flow: | J30: =$J$28-$J$29 -> 137225.1115 | L30: =J30/J11 -> 0.06861255574 | R30: =R28-R29 -> 194310.3115 | T30: =R30/J11 -> 0.09715515574
C31: Plus Principal Reduction: | J31: =PPMT(R16,1,30,-R14,,0) -> 28833.86705 | R31: =$J$31 -> 28833.86705
C32: Total Return Before Taxes: | J32: =J30+J31 -> 166058.9785 | L32: =J32/J11 -> 0.08302948927 | M32: ** | R32: =R30+R31 -> 223144.1785 | T32: =R32/J11 -> 0.1115720893 | U32: **
C34: * As a percent of Scheduled Gross Income.
C35: ** As a percent of Down Payment.
C38: SCHEDULED INCOME | P38: ESTIMATED EXPENSES
H39: Current | L39: Market | P39: Taxes (1.15%xSales Price) | V39: =I10*0.0115 -> 57500
C40: Unit | F40: # of | H40: Average | J40: Monthly | L40: Avg Market | N40: Monthly | P40: Management (4%xGOI) | V40: 0
C41: Type | F41: Unit | H41: Rent | J41: Totals | L41: Rent | N41: Totals | P41: Insurance | V41: 5519
C42: 1+1 | F42: 3 | H42: 975 | J42: 2925 | L42: 1000 | N42: =L42*F42 -> 3000 | P42: Maintenance | V42: 8000
C43: 2+2 | F43: 1 | H43: 1400 | J43: 1400 | L43: 1425 | N43: =L43*F43 -> 1425 | P43: Utilities | V43: 6000
C44: 3+2 | F44: 4 | H44: 1800 | J44: =F44*H44 -> 7200 | L44: 1825 | N44: =L44*F44 -> 7300 | P44: Landscaping | V44: 1080
P57: Total: | V57: =SUM(V39:V54) -> 78099
C58: Monthly Total Scheduled Rent: | J58: =SUM(J42:J56) -> 11525 | N58: =SUM(N42:N47) -> 11725 | P58: Per Gross SF: | V58: =V57/$V$10 -> 3.734292818
C59: Annual Scheduled Gross Income: | J59: =J58*12 -> 138300 | N59: =N58*12 -> 140700 | P59: Per Unit: | V59: =V57/$V$9 -> 3904.95
C61: This information has been secured from sources we believe to be reliable, however we make no representations or warranties, expressed or implied, as to the accuracy of the information. References to square footage or age are approximate. Buyer must verify the information and bears all risk for any inaccuracies.

Sheet Sheet1
B1: Compatibility Report for quick calc sheet.xls
B2: Run on 8/26/2022 13:49
B4: If the workbook is saved in an earlier file format or opened in an earlier version of Microsoft Excel, the listed features will not be available.
B6: Minor loss of fidelity | E6: # of occurrences | F6: Version
B8: An embedded object in this worksheet can't be edited because it was created in a newer version of Microsoft Office. | E8: 1 | F8: Excel 97-2003
